[Event "44th Chess Olympiad Women 2022"]
[Site "Chennai"]
[Date "2022.08.09"]
[Round "11.20"]
[White "Masoumi, Sahar"]
[Black "Pipiras, Filipa Fortuna"]
[Result "1/2-1/2"]
[ECO "B22"]
[WhiteElo "1956"]
[BlackElo "2139"]
[Annotator "RC"]
[PlyCount "151"]
[EventDate "2022.07.29"]
[EventType "team-tourn"]
[EventCountry "IND"]
[SourceTitle "playchess.com"]
[Source "ChessBase"]
[SourceQuality "1"]
[WhiteTeam "Iran"]
[BlackTeam "Portugal"]
[WhiteTeamCountry "IRI"]
[BlackTeamCountry "POR"]
[TimeControl "40/5400+30:1800+30"]

1. e4 {[%emt 0:00:03]} c5 {[%emt 0:05:40]} 2. Nf3 {[%emt 0:00:18]} e6 {[%emt 0:00:40]} 3. c3 {[%emt 0:00:07]} Nf6 {[%emt 0:00:39]} 4. e5 {[%emt 0:00:06]} Nd5 {[%emt 0:00:09]} 5. d4 {[%emt 0:00:06]} cxd4 {[%emt 0:00:27]} 6. cxd4 {[%emt 0:00:06]} d6 {[%emt 0:02:22]} 7. Bc4 {[%emt 0:00:24]} Nb6 {[%emt 0:00:39]} 8. Bd3 {[%emt 0:00:25]} Nc6 {[%emt 0:01:03]} 9. a3 {[%emt 0:01:42]} Be7 {[%emt 0:11:22]} 10. O-O {[%emt 0:01:18]} Bd7 {[%emt 0:11:16]} 11. Nc3 {[%emt 0:01:27]} Rc8 {[%emt 0:08:08]} 12. exd6 {[%emt 0:11:57]} Bxd6 {[%emt 0:02:45]} 13. Re1 {[%emt 0:01:09]} Be7 {[%emt 0:06:44]} 14. Bc2 {[%emt 0:14:40]} O-O {[%emt 0:03:24]} 15. Qd3 {[%emt 0:04:15]} g6 {[%emt 0:05:35]} 16. Bf4 {[%emt 0:10:13]} Nd5 {[%emt 0:04:07]} 17. Bg3 {[%emt 0:02:11]} Bf6 {[%emt 0:06:13]} 18. Rad1 {[%emt 0:10:19]} a6 {[%emt 0:11:12]} 19. Ne5 {[%emt 0:05:38]} Nxe5 {[%emt 0:08:37]} 20. dxe5 {[%emt 0:00:43]} Be7 {[%emt 0:00:22]} 21. Nxd5 {[%emt 0:02:50]} exd5 {[%emt 0:00:09]} 22. Bb3 {[%emt 0:02:43]} Bf5 {[%emt 0:05:28]} 23. Qxd5 {[%emt 0:02:36]} Qxd5 {[%emt 0:00:39]} 24. Rxd5 {[%emt 0:02:03]} Be6 {[%emt 0:03:28]} 25. Rd3 {[%emt 0:00:29]} Bxb3 {[%emt 0:00:07]} 26. Rxb3 {[%emt 0:00:04]} b5 {[%emt 0:00:05]} 27. h3 {[%emt 0:02:36]} Rc2 {[%emt 0:00:10]} 28. Rd1 {[%emt 0:01:51]} Bc5 {[%emt 0:01:35]} 29. Rdd3 {[%emt 0:03:09]} Rc1+ {[%emt 0:00:53]} 30. Kh2 {[%emt 0:00:05]} Rc2 {[%emt 0:00:07]} 31. Rdc3 {[%emt 0:01:30]} Rxc3 {[%emt 0:00:26]} 32. Rxc3 {[%emt 0:00:00]} Bd4 {[%emt 0:00:09]} 33. Rc2 {[%emt 0:00:48]} Re8 {[%emt 0:00:58]} 34. f4 {[%emt 0:00:57]} g5 {[%emt 0:00:12]} 35. fxg5 {[%emt 0:02:19]} Bxe5 {[%emt 0:00:10]} 36. Bxe5 {[%emt 0:00:18]} Rxe5 {[%emt 0:00:08]} 37. h4 {[%emt 0:00:26]} Re4 {[%emt 0:00:43]} 38. g3 {[%emt 0:01:21]} Kg7 {[%emt 0:00:29]} 39. Kg2 {[%emt 0:00:33]} Re3 {[%emt 0:00:45]} 40. Kh3 {[%emt 0:02:29]} Rb3 {[%emt 0:00:30]} 41. Rd2 {[%emt 0:37:05]} a5 {[%emt 0:02:49]} 42. Rc2 {[%emt 0:00:00]} a4 {[%emt 0:00:54]} 43. Rf2 {[%emt 0:00:00]} b4 {[%emt 0:06:39]} 44. axb4 {[%emt 0:00:00]} Rxb4 {[%emt 0:00:07]} 45. Rf4 {[%emt 0:00:00]} Rxb2 {[%emt 0:00:57]} 46. Rxa4 {[%emt 0:00:00]} Rb6 {[%emt 0:03:34]} 47. Ra7 {[%emt 0:00:00]} Kg6 {[%emt 0:02:30]} 48. Ra8 {[%emt 0:00:00]} f6 {[%emt 0:01:12]} 49. gxf6 {[%emt 0:01:20]} Rxf6 {[%emt 0:00:18]} 50. Rg8+ {[%emt 0:02:17]} Kf7 {[%emt 0:00:49]} 51. Rg5 {[%emt 0:01:42]} Ra6 {[%emt 0:01:01]} 52. h5 {[%emt 0:00:57]} h6 {[%emt 0:01:33]} 53. Rb5 {[%emt 0:01:01]} Ra7 {[%emt 0:00:58]} 54. Rb6 {[%emt 0:03:40]} Kg7 {[%emt 0:00:08]} 55. Rg6+ {[%emt 0:01:07]} Kh7 {[%emt 0:00:09]} 56. Re6 {[%emt 0:01:04]} Rb7 {[%emt 0:02:33]} 57. Kg4 {[%emt 0:00:32]} Rg7+ {[%emt 0:00:29]} 58. Kf4 {[%emt 0:01:07]} Rf7+ {[%emt 0:00:21]} 59. Ke4 {[%emt 0:00:38]} Rg7 {[%emt 0:00:11]} 60. Kf4 {[%emt 0:00:28]} Rf7+ {[%emt 0:00:10]} 61. Kg4 {[%emt 0:00:17]} Rg7+ {[%emt 0:00:43]} 62. Kh4 {[%emt 0:00:11]} Ra7 {[%emt 0:00:25]} 63. Kh3 {[%emt 0:01:02]} Rg7 {[%emt 0:00:43]} 64. Rf6 {[%emt 0:00:37]} Ra7 {[%emt 0:00:27]} 65. Re6 {[%emt 0:00:52]} Rg7 {[%emt 0:00:17]} 66. g4 {[%emt 0:00:18]} Ra7 {[%emt 0:01:18]} 67. Kg3 {[%emt 0:00:19]} Rf7 {[%emt 0:00:43]} 68. Rd6 {[%emt 0:00:32]} Kg7 {[%emt 0:00:27]} 69. Rd5 {[%emt 0:00:30]} Kh7 {[%emt 0:00:38]} 70. Rf5 {[%emt 0:00:23]} Ra7 {[%emt 0:00:12]} 71. Rf3 {[%emt 0:00:45]} Kg7 {[%emt 0:00:12]} 72. Kf4 {[%emt 0:00:39]} Ra4+ {[%emt 0:00:37]} 73. Kf5 {[%emt 0:00:40]} Ra5+ {[%emt 0:00:07]} 74. Kf4 {[%emt 0:00:17]} Ra4+ {[%emt 0:00:07]} 75. Kf5 {[%emt 0:00:05]} Ra5+ {[%emt 0:00:09]} 76. Kf4 {[%emt 0:00:28]} 1/2-1/2

[Event "44th Chess Olympiad Women 2022"]
[Site "Chennai"]
[Date "2022.08.09"]
[Round "11.20"]
[White "Silva, Mariana Sofia T."]
[Black "Mahdian, Anousha"]
[Result "0-1"]
[ECO "D30"]
[WhiteElo "1912"]
[BlackElo "2161"]
[Annotator "RC"]
[PlyCount "126"]
[EventDate "2022.07.29"]
[EventType "team-tourn"]
[EventCountry "IND"]
[SourceTitle "playchess.com"]
[Source "ChessBase"]
[SourceQuality "1"]
[WhiteTeam "Portugal"]
[BlackTeam "Iran"]
[WhiteTeamCountry "POR"]
[BlackTeamCountry "IRI"]
[TimeControl "40/5400+30:1800+30"]

1. d4 {[%emt 0:00:08]} d5 {[%emt 0:00:05]} 2. c4 {[%emt 0:00:06]} e6 {[%emt 0:00:03]} 3. Nf3 {[%emt 0:00:06]} a6 {[%emt 0:00:05]} 4. g3 {[%emt 0:00:40]} dxc4 {[%emt 0:00:09]} 5. Bg2 {[%emt 0:04:50]} b5 {[%emt 0:00:04]} 6. a4 {[%emt 0:05:32]} Bb7 {[%emt 0:00:05]} 7. O-O {[%emt 0:00:38]} Nd7 {[%emt 0:00:04]} 8. b3 {[%emt 0:05:28]} cxb3 {[%emt 0:00:45]} 9. Qxb3 {[%emt 0:02:08]} b4 {[%emt 0:04:52]} 10. a5 {[%emt 0:08:26]} Ngf6 {[%emt 0:20:43]} 11. Nbd2 {[%emt 0:18:27]} Be7 {[%emt 0:08:20]} 12. Bb2 {[%emt 0:02:22]} O-O {[%emt 0:00:55]} 13. Rfc1 {[%emt 0:06:06]} c5 {[%emt 0:15:00]} 14. Nc4 {[%emt 0:08:20]} Rc8 {[%emt 0:16:39]} 15. Qd1 {[%emt 0:06:28]} Bd5 {[%emt 0:02:56]} 16. dxc5 {[%emt 0:03:43]} Rxc5 {[%emt 0:01:03]} 17. Qd4 {[%emt 0:04:58]} Bxc4 {[%emt 0:09:36]} 18. Rxc4 {[%emt 0:00:09]} e5 {[%emt 0:00:31]} 19. Qd3 {[%emt 0:07:04]} e4 {[%emt 0:00:34]} 20. Rxe4 {[%emt 0:00:22]} Nxe4 {[%emt 0:00:10]} 21. Qxe4 {[%emt 0:00:06]} Bf6 {[%emt 0:04:16]} 22. Bxf6 {[%emt 0:04:42]} Nxf6 {[%emt 0:05:42]} 23. Qxb4 {[%emt 0:00:09]} Rb5 {[%emt 0:00:05]} 24. Qc3 {[%emt 0:00:53]} Nd5 {[%emt 0:07:30]} 25. Qd2 {[%emt 0:04:17]} Nb4 {[%emt 0:00:33]} 26. Nd4 {[%emt 0:00:24]} Nc2 {[%emt 0:00:08]} 27. Qxc2 {[%emt 0:01:53]} Qxd4 {[%emt 0:00:04]} 28. Rd1 {[%emt 0:00:05]} Qb4 {[%emt 0:01:59]} 29. Be4 {[%emt 0:00:32]} g6 {[%emt 0:00:29]} 30. h4 {[%emt 0:02:09]} Qxa5 {[%emt 0:00:17]} 31. Rd6 {[%emt 0:01:08]} Rb6 {[%emt 0:00:39]} 32. Rd5 {[%emt 0:00:14]} Qa1+ {[%emt 0:00:08]} 33. Kg2 {[%emt 0:00:04]} Rb5 {[%emt 0:01:05]} 34. Rd6 {[%emt 0:00:28]} a5 {[%emt 0:00:38]} 35. Qc4 {[%emt 0:00:37]} Qe5 {[%emt 0:00:32]} 36. Qd3 {[%emt 0:01:54]} Rb3 {[%emt 0:00:46]} 37. Qxb3 {[%emt 0:01:27]} Qxd6 {[%emt 0:00:04]} 38. h5 {[%emt 0:00:11]} Qe5 {[%emt 0:00:36]} 39. Bf3 {[%emt 0:00:33]} gxh5 {[%emt 0:00:13]} 40. Qa4 {[%emt 0:00:46]} Qg5 {[%emt 0:00:29]} 41. Kh2 {[%emt 0:03:06]} Rd8 {[%emt 0:03:08]} 42. Qc4 {[%emt 0:01:38]} h4 {[%emt 0:06:14]} 43. gxh4 {[%emt 0:02:16]} Qe5+ {[%emt 0:00:08]} 44. Kg2 {[%emt 0:00:32]} Rd4 {[%emt 0:03:33]} 45. Qc8+ {[%emt 0:01:42]} Kg7 {[%emt 0:00:04]} 46. Qh3 {[%emt 0:08:44]} Qe6 {[%emt 0:11:36]} 47. Qh2 {[%emt 0:02:19]} Qg6+ {[%emt 0:00:11]} 48. Kh3 {[%emt 0:00:30]} Qf5+ {[%emt 0:00:13]} 49. Kg2 {[%emt 0:00:15]} Qf4 {[%emt 0:03:22]} 50. Qh1 {[%emt 0:01:00]} Qxh4 {[%emt 0:02:58]} 51. Qa1 {[%emt 0:00:18]} Qg5+ {[%emt 0:00:03]} 52. Kf1 {[%emt 0:02:16]} Qe5 {[%emt 0:00:35]} 53. e3 {[%emt 0:01:42]} Re4 {[%emt 0:00:06]} 54. Qd1 {[%emt 0:01:15]} Rb4 {[%emt 0:00:20]} 55. Bd5 {[%emt 0:01:42]} Qf6 {[%emt 0:02:49]} 56. e4 {[%emt 0:01:56]} Rb2 {[%emt 0:02:56]} 57. Qg4+ {[%emt 0:00:18]} Qg6 {[%emt 0:00:06]} 58. Qf4 {[%emt 0:01:48]} Qa6+ {[%emt 0:00:22]} 59. Kg2 {[%emt 0:00:12]} Qf6 {[%emt 0:00:15]} 60. Qe3 {[%emt 0:00:58]} h6 {[%emt 0:00:35]} 61. e5 {[%emt 0:00:58]} Qg5+ {[%emt 0:00:18]} 62. Qxg5+ {[%emt 0:01:07]} hxg5 {[%emt 0:00:03]} 63. Kf3 {[%emt 0:00:06]} a4 {[%emt 0:00:13]} 0-1

[Event "44th Chess Olympiad Women 2022"]
[Site "Chennai"]
[Date "2022.08.09"]
[Round "11.20"]
[White "Silva, Ana Ines Teixeira Da"]
[Black "Asgharzadeh, Mitra"]
[Result "0-1"]
[ECO "B25"]
[WhiteElo "1775"]
[BlackElo "1988"]
[Annotator "TA"]
[PlyCount "56"]
[EventDate "2022.07.29"]
[EventType "team-tourn"]
[EventCountry "IND"]
[SourceTitle "playchess.com"]
[Source "ChessBase"]
[SourceQuality "1"]
[WhiteTeam "Portugal"]
[BlackTeam "Iran"]
[WhiteTeamCountry "POR"]
[BlackTeamCountry "IRI"]
[TimeControl "40/5400+30:1800+30"]

{[%evp 21,55,-7,6,-38,-54,-53,-30,-66,-43,-108,-93,-81,-55,-68,-74,-489,-480,-634,-636,-1474,-1467,-1412,-1348,-2588,-2264,-29988,-29989,-29991,-29992,-29992,-29993,-29997,-29998,-29998,-29999,-29999]} 1. e4 {[%emt 0:00:02]} c5 {[%emt 0:01:31]} 2. Nc3 {[%emt 0:00:13]} Nc6 {[%emt 0:00:05]} 3. g3 {[%emt 0:00:05]} g6 {[%emt 0:00:04]} 4. Bg2 {[%emt 0:00:06]} Bg7 {[%emt 0:00:05]} 5. d3 {[%emt 0:00:08]} d6 {[%emt 0:00:06]} 6. f4 {[%emt 0:00:29]} e6 {[%emt 0:00:06]} 7. Be3 {[%emt 0:00:20]} Nge7 {[%emt 0:00:31]} 8. Nf3 {[%emt 0:00:12]} O-O {[%emt 0:00:32]} 9. O-O {[%emt 0:00:29]} Rb8 {[%emt 0:05:50]} 10. Qd2 {[%emt 0:01:15]} b5 {[%emt 0:03:08]} 11. Nd1 {[%emt 0:03:05]} b4 {[%emt 0:11:33]} 12. g4 {[%emt 0:04:22] B25: Closed Sicilian: 3 g3, lines without early Be3.} f5 {[%emt 0:04:57]} 13. gxf5 {[%emt 0:09:27]} exf5 {[%emt 0:02:12] [#]} 14. Kh1 $146 {[%emt 0:06:11] Black has an edge.} ({Predecessor:} 14. Qf2 fxe4 15. dxe4 d5 16. Qh4 Nd4 17. Ne5 dxe4 18. Bxe4 Bf5 19. Nf2 Ne2+ 20. Kg2 Bxe4+ 21. Nxe4 Qd5 {0-1 (21) Richmond,J (2125)-Adair,J (2481) Wakefield 2017}) 14... Kh8 {[%emt 0:05:53]} 15. e5 {[%emt 0:08:26]} (15. Re1 $15) 15... dxe5 {[%emt 0:14:37]} 16. Nxe5 {[%emt 0:03:06]} Nxe5 {[%emt 0:08:24]} 17. fxe5 {[%emt 0:00:10]} Qc7 {[%emt 0:01:06]} 18. Qf2 $2 {[%emt 0:12:53][%mdl 8192] [#] This move loses the game for White.} (18. a3 $17 {is tougher.}) 18... f4 $1 $19 {[%emt 0:04:18]} 19. Bxc5 {[%emt 0:02:26]} f3 $1 {[%emt 0:01:22]} 20. Bd6 {[%emt 0:10:12]} fxg2+ {[%emt 0:00:27]} 21. Qxg2 {[%emt 0:00:11] [#]} Bb7 $1 {[%emt 0:00:39][%cal Rf8f1]} 22. Rf3 {[%emt 0:34:30] [#]} (22. Ne3 Bxg2+) 22... Rxf3 $1 {[%emt 0:00:28][%cal Rf3f1]} 23. Kg1 {[%emt 0:01:11] Prevents Rf1+.} (23. Nc3 bxc3) 23... Qb6+ {[%emt 0:00:14] Black mates.} 24. d4 {[%emt 0:00:41]} Qxd4+ {[%emt 0:00:57]} 25. Nf2 {[%emt 0:00:16] [#]} Rbf8 $1 {[%emt 0:00:43]} 26. Bxe7 {[%emt 0:02:09]} (26. Bc5 Qxc5) 26... Rxf2 {[%emt 0:00:22][%csl Gf8][%cal Rf2f1]} 27. Qxb7 {[%emt 0:00:34]} Rf1+ {[%emt 0:01:00]} 28. Kg2 {[%emt 0:00:07]} Qg4# {[%emt 0:00:14] Weighted Error Value: White=1.40/Black=0.03 (flawless)} 0-1

[Event "44th Chess Olympiad Women 2022"]
[Site "Chennai"]
[Date "2022.08.09"]
[Round "11.21"]
[White "Ouellet, Maili-Jade"]
[Black "Zuriel, Marisa"]
[Result "1-0"]
[ECO "A59"]
[WhiteElo "2239"]
[BlackElo "2174"]
[Annotator "RC"]
[PlyCount "122"]
[EventDate "2022.07.29"]
[EventType "team-tourn"]
[EventCountry "IND"]
[SourceTitle "playchess.com"]
[Source "ChessBase"]
[SourceQuality "1"]
[WhiteTeam "Canada"]
[BlackTeam "Argentina"]
[WhiteTeamCountry "CAN"]
[BlackTeamCountry "ARG"]
[TimeControl "40/5400+30:1800+30"]

1. d4 {[%emt 0:00:02]} Nf6 {[%emt 0:00:09]} 2. c4 {[%emt 0:00:07]} c5 {[%emt 0:00:07]} 3. d5 {[%emt 0:00:04]} b5 {[%emt 0:00:17]} 4. cxb5 {[%emt 0:00:05]} a6 {[%emt 0:00:04]} 5. bxa6 {[%emt 0:00:05]} g6 {[%emt 0:00:05]} 6. Nc3 {[%emt 0:00:03]} Bxa6 {[%emt 0:00:05]} 7. e4 {[%emt 0:00:05]} Bxf1 {[%emt 0:00:06]} 8. Kxf1 {[%emt 0:00:04]} d6 {[%emt 0:00:07]} 9. g3 {[%emt 0:00:04]} Bg7 {[%emt 0:00:27]} 10. Kg2 {[%emt 0:00:05]} O-O {[%emt 0:00:31]} 11. Nf3 {[%emt 0:00:06]} Qb6 {[%emt 0:04:36]} 12. h3 {[%emt 0:02:56]} Nbd7 {[%emt 0:01:55]} 13. Qc2 {[%emt 0:01:04]} Rfb8 {[%emt 0:02:36]} 14. Rd1 {[%emt 0:01:41]} Ne8 {[%emt 0:02:31]} 15. Nd2 {[%emt 0:23:28]} Nc7 {[%emt 0:04:40]} 16. Rb1 {[%emt 0:02:37]} Nb5 {[%emt 0:09:55]} 17. Nc4 {[%emt 0:17:44]} Qa6 {[%emt 0:00:15]} 18. Nxb5 {[%emt 0:00:28]} Rxb5 {[%emt 0:00:11]} 19. a3 {[%emt 0:04:27]} Rab8 {[%emt 0:03:39]} 20. b3 {[%emt 0:01:50]} Ne5 {[%emt 0:01:44]} 21. Nxe5 {[%emt 0:03:26]} Bxe5 {[%emt 0:01:05]} 22. Rd3 {[%emt 0:11:37]} c4 {[%emt 0:16:27]} 23. Rf3 {[%emt 0:03:41]} c3 {[%emt 0:05:16]} 24. b4 {[%emt 0:01:59]} Qb7 {[%emt 0:05:33]} 25. Bf4 {[%emt 0:01:39]} Bg7 {[%emt 0:00:24]} 26. Rd3 {[%emt 0:02:06]} Ra8 {[%emt 0:05:59]} 27. Bc1 {[%emt 0:04:33]} e6 {[%emt 0:11:13]} 28. Qb3 {[%emt 0:02:01]} exd5 {[%emt 0:04:05]} 29. Rxd5 {[%emt 0:05:21]} Re8 {[%emt 0:05:41]} 30. Qa4 {[%emt 0:01:57]} Rb8 {[%emt 0:11:26]} 31. Qxb5 {[%emt 0:00:06]} Qxb5 {[%emt 0:00:03]} 32. Rxb5 {[%emt 0:00:05]} Rxb5 {[%emt 0:00:01]} 33. a4 {[%emt 0:00:26]} Rb8 {[%emt 0:00:20]} 34. b5 {[%emt 0:00:59]} Bd4 {[%emt 0:01:02]} 35. a5 {[%emt 0:00:53]} Kf8 {[%emt 0:00:53]} 36. b6 {[%emt 0:00:55]} Ke7 {[%emt 0:00:21]} 37. Kf3 {[%emt 0:06:24]} Kd7 {[%emt 0:00:54]} 38. b7 {[%emt 0:01:01]} Kc7 {[%emt 0:02:25]} 39. a6 {[%emt 0:00:05]} f5 {[%emt 0:02:08]} 40. exf5 {[%emt 0:02:20]} gxf5 {[%emt 0:00:28]} 41. Be3 {[%emt 0:04:15]} Bxe3 {[%emt 0:10:15]} 42. fxe3 {[%emt 0:01:58]} c2 {[%emt 0:01:50]} 43. Rc1 {[%emt 0:01:03]} Kb6 {[%emt 0:00:05]} 44. Rxc2 {[%emt 0:00:15]} Kxa6 {[%emt 0:00:11]} 45. Rc6+ {[%emt 0:00:24]} Kxb7 {[%emt 0:01:22]} 46. Rxd6 {[%emt 0:00:09]} Kc7 {[%emt 0:02:03]} 47. Rf6 {[%emt 0:01:23]} Rb5 {[%emt 0:04:42]} 48. Kf4 {[%emt 0:01:18]} Kd7 {[%emt 0:02:49]} 49. Rxf5 {[%emt 0:00:29]} Rb4+ {[%emt 0:00:17]} 50. e4 {[%emt 0:00:12]} Ke6 {[%emt 0:00:09]} 51. Rh5 {[%emt 0:00:13]} Rb1 {[%emt 0:01:04]} 52. Rh6+ {[%emt 0:00:29]} Kf7 {[%emt 0:00:04]} 53. Rxh7+ {[%emt 0:00:06]} Kg6 {[%emt 0:00:02]} 54. Ra7 {[%emt 0:00:20]} Rf1+ {[%emt 0:00:15]} 55. Kg4 {[%emt 0:00:10]} Re1 {[%emt 0:00:06]} 56. Ra6+ {[%emt 0:00:08]} Kf7 {[%emt 0:00:57]} 57. Kf3 {[%emt 0:00:57]} Rf1+ {[%emt 0:00:10]} 58. Ke2 {[%emt 0:00:15]} Rb1 {[%emt 0:01:31]} 59. h4 {[%emt 0:00:26]} Rb3 {[%emt 0:01:38]} 60. Kf2 {[%emt 0:00:28]} Rc3 {[%emt 0:00:35]} 61. h5 {[%emt 0:00:21]} Kg7 {[%emt 0:00:23]} 1-0

[Event "44th Chess Olympiad Women 2022"]
[Site "Chennai"]
[Date "2022.08.09"]
[Round "11.21"]
[White "Campos, Maria Jose"]
[Black "Demchenko, Svitlana"]
[Result "1-0"]
[ECO "A21"]
[WhiteElo "2185"]
[BlackElo "2122"]
[Annotator "RC"]
[PlyCount "103"]
[EventDate "2022.07.29"]
[EventType "team-tourn"]
[EventCountry "IND"]
[SourceTitle "playchess.com"]
[Source "ChessBase"]
[SourceQuality "1"]
[WhiteTeam "Argentina"]
[BlackTeam "Canada"]
[WhiteTeamCountry "ARG"]
[BlackTeamCountry "CAN"]
[TimeControl "40/5400+30:1800+30"]

1. c4 {[%emt 0:00:07]} f5 {[%emt 0:00:09]} 2. g3 {[%emt 0:00:43]} Nf6 {[%emt 0:00:08]} 3. Bg2 {[%emt 0:00:42]} g6 {[%emt 0:00:09]} 4. Nc3 {[%emt 0:01:17]} Bg7 {[%emt 0:00:06]} 5. e3 {[%emt 0:01:52]} O-O {[%emt 0:01:59]} 6. Nge2 {[%emt 0:01:05]} e5 {[%emt 0:01:33]} 7. d3 {[%emt 0:01:17]} d6 {[%emt 0:07:09]} 8. O-O {[%emt 0:00:39]} c6 {[%emt 0:02:29]} 9. f4 {[%emt 0:05:30]} Be6 {[%emt 0:03:51]} 10. b3 {[%emt 0:00:59]} Na6 {[%emt 0:06:26]} 11. Qd2 {[%emt 0:06:17]} Re8 {[%emt 0:04:17]} 12. Bb2 {[%emt 0:02:50]} Qd7 {[%emt 0:07:56]} 13. Rad1 {[%emt 0:02:46]} Rad8 {[%emt 0:00:51]} 14. h3 {[%emt 0:06:02]} Nc7 {[%emt 0:02:39]} 15. Kh2 {[%emt 0:06:09]} b5 {[%emt 0:10:35]} 16. Rc1 {[%emt 0:04:16]} bxc4 {[%emt 0:13:37]} 17. dxc4 {[%emt 0:02:59]} Na6 {[%emt 0:00:59]} 18. Rfd1 {[%emt 0:05:24]} Qc7 {[%emt 0:02:24]} 19. Na4 {[%emt 0:11:29]} Ne4 {[%emt 0:06:42]} 20. Qc2 {[%emt 0:06:12]} Nb4 {[%emt 0:04:19]} 21. Qb1 {[%emt 0:00:05]} Nf2 {[%emt 0:01:42]} 22. Rd2 {[%emt 0:02:18]} e4 {[%emt 0:02:47]} 23. Bxg7 {[%emt 0:03:05]} Qxg7 {[%emt 0:00:23]} 24. a3 {[%emt 0:00:14]} Nbd3 {[%emt 0:01:01]} 25. Rf1 {[%emt 0:00:45]} Qh6 {[%emt 0:00:17]} 26. Kg1 {[%emt 0:07:43]} Nxh3+ {[%emt 0:00:54]} 27. Bxh3 {[%emt 0:00:05]} Qxh3 {[%emt 0:00:05]} 28. Nb2 {[%emt 0:01:06]} Nc5 {[%emt 0:04:07]} 29. b4 {[%emt 0:01:25]} Nd7 {[%emt 0:00:12]} 30. Qe1 {[%emt 0:05:11]} Nf6 {[%emt 0:07:21]} 31. Nd4 {[%emt 0:00:44]} Ng4 {[%emt 0:00:03]} 32. Nxc6 {[%emt 0:03:46]} Rd7 {[%emt 0:00:05]} 33. Rg2 {[%emt 0:01:15]} h5 {[%emt 0:02:11]} 34. Nd4 {[%emt 0:03:25]} Rh7 {[%emt 0:04:53]} 35. Nxe6 {[%emt 0:03:40]} Rxe6 {[%emt 0:00:05]} 36. Nd1 {[%emt 0:00:30]} h4 {[%emt 0:02:13]} 37. Nf2 {[%emt 0:01:32]} Nxf2 {[%emt 0:00:05]} 38. Qxf2 {[%emt 0:00:49]} hxg3 {[%emt 0:01:31]} 39. Qxg3 {[%emt 0:00:13]} Qh5 {[%emt 0:00:48]} 40. Rh2 {[%emt 0:01:38]} Qxh2+ {[%emt 0:00:42]} 41. Qxh2 {[%emt 0:30:06]} Rxh2 {[%emt 0:30:03]} 42. Kxh2 {[%emt 0:00:05]} Kf7 {[%emt 0:00:00]} 43. Rd1 {[%emt 0:00:00]} Kf6 {[%emt 0:00:00]} 44. Rd5 {[%emt 0:00:00]} g5 {[%emt 0:00:00]} 45. Kg3 {[%emt 0:00:00]} g4 {[%emt 0:00:00]} 46. a4 {[%emt 0:00:00]} Re8 {[%emt 0:00:00]} 47. Rxd6+ {[%emt 0:00:00]} Ke7 {[%emt 0:00:00]} 48. Rd5 {[%emt 0:00:00]} Kf6 {[%emt 0:00:00]} 49. c5 {[%emt 0:06:02]} Rh8 {[%emt 0:00:00]} 50. c6 {[%emt 0:00:00]} Rh3+ {[%emt 0:00:00]} 51. Kg2 {[%emt 0:00:00]} Rh7 {[%emt 0:00:00]} 52. Rd6+ {[%emt 0:00:00]} 1-0

[Event "44th Chess Olympiad Women 2022"]
[Site "Chennai"]
[Date "2022.08.09"]
[Round "11.21"]
[White "Sarquis, Maria Belen"]
[Black "Guo, Yu Han"]
[Result "1-0"]
[ECO "B10"]
[WhiteElo "2072"]
[BlackElo "1630"]
[Annotator "NA RC"]
[PlyCount "89"]
[EventDate "2022.07.29"]
[EventType "team-tourn"]
[EventCountry "IND"]
[SourceTitle "playchess.com"]
[Source "ChessBase"]
[SourceQuality "1"]
[WhiteTeam "Argentina"]
[BlackTeam "Canada"]
[WhiteTeamCountry "ARG"]
[BlackTeamCountry "CAN"]
[TimeControl "40/5400+30:1800+30"]

1. e4 {[%emt 0:00:02]} c6 {[%emt 0:00:16]} 2. Nf3 {[%emt 0:00:14]} d5 {[%emt 0:00:12]} 3. exd5 {[%emt 0:00:08]} cxd5 {[%emt 0:00:10]} 4. Ne5 {[%emt 0:00:06]} Nf6 {[%emt 0:00:14]} 5. d4 {[%emt 0:00:18]} g6 {[%emt 0:00:32]} 6. Bb5+ {[%emt 0:05:49]} Nbd7 {[%emt 0:00:20]} 7. c3 {[%emt 0:02:09]} Bg7 {[%emt 0:00:17]} 8. Nd2 {[%emt 0:04:11]} O-O {[%emt 0:00:48]} 9. Nxd7 {[%emt 0:05:32]} Bxd7 {[%emt 0:00:30]} 10. Bd3 {[%emt 0:00:05]} Qc7 {[%emt 0:03:51]} 11. O-O {[%emt 0:01:44]} Ng4 {[%emt 0:07:35]} 12. Nf3 {[%emt 0:02:25]} f6 {[%emt 0:05:46]} 13. h3 {[%emt 0:11:35]} Nh6 {[%emt 0:00:55]} 14. Bc2 {[%emt 0:00:19]} Kh8 {[%emt 0:06:52]} 15. Re1 {[%emt 0:03:18]} Rae8 {[%emt 0:02:51]} 16. Nh4 {[%emt 0:03:30]} f5 {[%emt 0:07:17]} 17. Qf3 {[%emt 0:09:38]} e6 {[%emt 0:12:11]} 18. Bf4 {[%emt 0:02:35]} Qd8 {[%emt 0:01:49]} 19. Qg3 {[%emt 0:00:36]} Nf7 {[%emt 0:02:45]} 20. Nf3 {[%emt 0:00:36]} Bf6 {[%emt 0:01:38]} 21. h4 {[%emt 0:02:29]} Rg8 {[%emt 0:04:41]} 22. Ng5 {[%emt 0:02:03]} Kg7 {[%emt 0:04:19]} 23. Nxf7 {[%emt 0:10:56]} Kxf7 {[%emt 0:00:08]} 24. Bg5 {[%emt 0:00:11]} h6 {[%emt 0:01:22]} 25. Bxf6 {[%emt 0:08:58]} Qxf6 {[%emt 0:00:09]} 26. Re2 {[%emt 0:02:51]} g5 {[%emt 0:01:49]} 27. hxg5 {[%emt 0:00:13]} Rxg5 {[%emt 0:10:42]} 28. Qc7 {[%emt 0:01:22]} Re7 {[%emt 0:00:34]} 29. Qe5 {[%emt 0:00:26]} Qg6 {[%emt 0:01:15]} 30. f3 {[%emt 0:02:37]} h5 {[%emt 0:04:54]} 31. Bb3 {[%emt 0:07:11]} Bb5 {[%emt 0:01:35]} 32. Rf2 {[%emt 0:00:28]} Bc6 {[%emt 0:03:14]} 33. Re1 {[%emt 0:00:51]} h4 {[%emt 0:01:29]} 34. Kh2 {[%emt 0:00:21]} Kf8 {[%emt 0:03:17]} 35. Qh8+ {[%emt 0:00:22]} Kf7 {[%emt 0:00:24]} 36. Qe5 {[%emt 0:00:18]} Kg8 {[%emt 0:03:26]} 37. c4 {[%emt 0:02:20]} dxc4 {[%emt 0:01:58]} 38. Bxc4 {[%emt 0:00:22]} Kh7 {[%emt 0:00:10]} 39. Rg1 {[%emt 0:03:37]} Rg3 {[%emt 0:02:22]} 40. d5 {[%emt 0:03:20]} Rg7 {[%emt 0:04:22]} 41. dxc6 {[%emt 0:08:50]} h3 {[%emt 0:04:42]} 42. Bxe6 {[%emt 0:01:46]} Qh5 {[%emt 0:01:51]} 43. Qxf5+ {[%emt 0:00:46]} Kh6 {[%emt 0:02:31]} 44. Qxh5+ {[%emt 0:00:10]} Kxh5 {[%emt 0:00:05]} 45. c7 {[%emt 0:02:12]} 1-0